[Event "Jeux du Barreau 2019"]
[Site "Paris, France"]
[Date "2019.07.10"]
[Round "1.1"]
[White "Leblic, Maximilien"]
[Black "Mungunkhuu, Mijgee"]
[Result "0-1"]
[TimeControl "15+3"]
[WhiteElo "1289"]
[BlackElo "2219"]

1. e4 {[%clk 00:15:03]} {[%emt 00:00:01]} d6 {[%clk 00:15:05]} {[%emt
00:00:01]} 2. d4 {[%clk 00:14:59]} {[%emt 00:00:07]} Nd7 {[%clk 00:15:08]}
{[%emt 00:00:01]} 3. Nf3 {[%clk 00:14:58]} {[%emt 00:00:04]} c6 {[%clk
00:15:10]} 4. Nc3 {[%clk 00:14:43]} {[%emt 00:00:18]} e5 {[%clk 00:15:10]}
{[%emt 00:00:02]} 5. Bg5 {[%clk 00:14:22]} {[%emt 00:00:24]} Ngf6 {[%clk
00:15:11]} {[%emt 00:00:02]} 6. Be2 {[%clk 00:14:14]} {[%emt 00:00:11]} Be7
{[%clk 00:15:13]} {[%emt 00:00:02]} 7. O-O {[%clk 00:14:07]} {[%emt 00:00:10]}
O-O {[%clk 00:15:13]} {[%emt 00:00:03]} 8. Re1 {[%clk 00:13:54]} {[%emt
00:00:17]} Qc7 {[%clk 00:15:14]} {[%emt 00:00:01]} 9. Bc4 {[%clk 00:12:56]}
{[%emt 00:01:01]} b5 {[%clk 00:15:12]} {[%emt 00:00:05]} 10. Bb3 {[%clk
00:12:48]} {[%emt 00:00:11]} a5 {[%clk 00:15:06]} {[%emt 00:00:08]} 11. a3
{[%clk 00:12:43]} {[%emt 00:00:08]} Rb8 {[%clk 00:15:04]} {[%emt 00:00:05]} 12.
Bxf6 {[%clk 00:12:24]} {[%emt 00:00:22]} Nxf6 {[%clk 00:14:59]} {[%emt
00:00:08]} 13. Qd2 {[%clk 00:11:51]} {[%emt 00:00:36]} b4 {[%clk 00:14:45]}
{[%emt 00:00:17]} 14. Nd1 {[%clk 00:11:16]} {[%emt 00:00:39]} c5 {[%clk
00:13:50]} {[%emt 00:00:58]} 15. c3 {[%clk 00:10:49]} {[%emt 00:00:29]} c4
{[%clk 00:13:47]} {[%emt 00:00:06]} 16. Bc2 {[%clk 00:10:29]} {[%emt 00:00:24]}
b3 {[%clk 00:13:41]} {[%emt 00:00:09]} 17. Bb1 {[%clk 00:10:31]} {[%emt
00:00:01]} Bb7 {[%clk 00:13:42]} {[%emt 00:00:01]} 18. d5 {[%clk 00:10:18]}
{[%emt 00:00:15]} Bc8 {[%clk 00:13:20]} {[%emt 00:00:25]} 19. Ne3 {[%clk
00:09:45]} {[%emt 00:00:36]} Bd7 {[%clk 00:13:15]} {[%emt 00:00:08]} 20. Qe2
{[%clk 00:09:30]} {[%emt 00:00:19]} Rbc8 {[%clk 00:13:12]} {[%emt 00:00:06]} 21.
Nf5 {[%clk 00:09:20]} {[%emt 00:00:13]} Bxf5 {[%clk 00:13:05]} {[%emt
00:00:10]} 22. exf5 {[%clk 00:09:20]} {[%emt 00:00:03]} Nxd5 {[%clk 00:13:00]}
{[%emt 00:00:08]} 23. Be4 {[%clk 00:08:50]} {[%emt 00:00:33]} Nf6 {[%clk
00:12:57]} {[%emt 00:00:06]} 24. Rad1 {[%clk 00:08:27]} {[%emt 00:00:25]} Rfd8
{[%clk 00:12:36]} {[%emt 00:00:23]} 25. Qd2 {[%clk 00:06:56]} {[%emt 00:01:35]}
d5 {[%clk 00:12:28]} {[%emt 00:00:11]} 26. Bb1 {[%clk 00:06:25]} {[%emt
00:00:33]} e4 {[%clk 00:12:23]} {[%emt 00:00:08]} 27. Nd4 {[%clk 00:06:24]}
{[%emt 00:00:04]} Bd6 {[%clk 00:12:08]} {[%emt 00:00:17]} 28. Nb5 {[%clk
00:05:55]} {[%emt 00:00:33]} Qd7 {[%clk 00:12:04]} {[%emt 00:00:06]} 29. Nxd6
{[%clk 00:05:55]} {[%emt 00:00:04]} Qxd6 {[%clk 00:12:05]} {[%emt 00:00:02]} 30.
Bxe4 {[%clk 00:04:54]} {[%emt 00:01:03]} Re8 {[%clk 00:11:58]} {[%emt
00:00:11]} 31. Bf3 {[%clk 00:04:19]} {[%emt 00:00:39]} h6 {[%clk 00:11:55]}
{[%emt 00:00:05]} 32. h3 {[%clk 00:04:20]} Rcd8 {[%clk 00:11:30]} {[%emt
00:00:31]} 33. Rxe8+ {[%clk 00:04:21]} Rxe8 {[%clk 00:11:31]} {[%emt 00:00:03]}
34. Bxd5 {[%clk 00:03:59]} Nxd5 {[%clk 00:11:32]} {[%emt 00:00:27]} 35. Qxd5
{[%clk 00:03:56]} Re1+ {[%clk 00:11:32]} {[%emt 00:00:08]} 0-1

[Event "Jeux du Barreau 2019"]
[Site "Paris, France"]
[Date "2019.07.10"]
[Round "1.2"]
[White "Vandeweeghe, Simon"]
[Black "Mangenot, Valentin"]
[Result "1-0"]
[TimeControl "15+3"]
[WhiteElo "2036"]
[BlackElo "1405"]

1. d4 {[%clk 00:15:02]} {[%emt 00:00:02]} e6 {[%clk 00:14:56]} {[%emt
00:00:11]} 2. c4 {[%clk 00:15:00]} {[%emt 00:00:05]} Nf6 {[%clk 00:14:45]}
{[%emt 00:00:14]} 3. Nf3 {[%clk 00:15:00]} {[%emt 00:00:03]} d5 {[%clk
00:14:44]} {[%emt 00:00:04]} 4. Nc3 {[%clk 00:14:57]} {[%emt 00:00:06]} Be7
{[%clk 00:14:26]} {[%emt 00:00:21]} 5. Bf4 {[%clk 00:14:21]} {[%emt 00:00:39]}
O-O {[%clk 00:13:07]} {[%emt 00:01:21]} 6. e3 {[%clk 00:14:10]} {[%emt
00:00:14]} c5 {[%clk 00:12:20]} {[%emt 00:00:51]} 7. Bd3 {[%clk 00:13:54]}
{[%emt 00:00:20]} Nc6 {[%clk 00:11:49]} {[%emt 00:00:34]} 8. h3 {[%clk
00:13:11]} {[%emt 00:00:45]} a6 {[%clk 00:10:33]} {[%emt 00:01:20]} 9. O-O
{[%clk 00:13:00]} {[%emt 00:00:13]} dxc4 {[%clk 00:09:54]} {[%emt 00:00:43]} 10.
Bxc4 {[%clk 00:12:59]} {[%emt 00:00:03]} b5 {[%clk 00:09:52]} {[%emt 00:00:05]}
11. Bd3 {[%clk 00:11:09]} {[%emt 00:01:53]} c4 {[%clk 00:09:51]} {[%emt
00:00:03]} 12. Bb1 {[%clk 00:10:42]} {[%emt 00:00:30]} Bb7 {[%clk 00:09:27]}
{[%emt 00:00:27]} 13. a4 {[%clk 00:09:23]} {[%emt 00:01:22]} b4 {[%clk
00:08:52]} {[%emt 00:00:39]} 14. Ne4 {[%clk 00:07:10]} {[%emt 00:02:16]} Nd5
{[%clk 00:07:47]} {[%emt 00:01:08]} 15. Bg3 {[%clk 00:05:44]} {[%emt 00:01:29]}
Rc8 {[%clk 00:07:25]} {[%emt 00:00:25]} 16. Qc2 {[%clk 00:04:21]} {[%emt
00:01:27]} f5 {[%clk 00:06:21]} {[%emt 00:01:07]} 17. Nc5 {[%clk 00:02:57]}
{[%emt 00:01:27]} Bxc5 {[%clk 00:06:08]} {[%emt 00:00:16]} 18. dxc5 {[%clk
00:02:58]} {[%emt 00:00:02]} c3 {[%clk 00:05:39]} {[%emt 00:00:32]} 19. Bd6
{[%clk 00:02:36]} {[%emt 00:00:25]} Rf7 {[%clk 00:05:15]} {[%emt 00:00:27]} 20.
Ba2 {[%clk 00:02:19]} {[%emt 00:00:21]} Qd7 {[%clk 00:04:32]} {[%emt 00:00:46]}
21. Bxd5 {[%clk 00:01:36]} {[%emt 00:00:45]} exd5 {[%clk 00:04:33]} {[%emt
00:00:02]} 22. bxc3 {[%clk 00:01:37]} {[%emt 00:00:02]} b3 {[%clk 00:04:05]}
{[%emt 00:00:31]} 23. Qxb3 {[%clk 00:01:34]} {[%emt 00:00:06]} Na5 {[%clk
00:04:07]} {[%emt 00:00:01]} 24. Qc2 {[%clk 00:01:18]} {[%emt 00:00:20]} Nc4
{[%emt 00:00:03]} 25. Rfb1 {[%clk 00:01:11]} {[%emt 00:00:09]} Nxd6 {[%clk
00:04:06]} {[%emt 00:00:04]} 26. cxd6 {[%clk 00:01:12]} {[%emt 00:00:02]} Qxd6
{[%emt 00:00:04]} 27. Qd3 {[%emt 00:00:16]} Ba8 {[%clk 00:03:56]} {[%emt
00:00:03]} 28. Nd4 {[%clk 00:00:59]} {[%emt 00:00:51]} f4 29. a5 {[%emt
00:00:17]} fxe3 {[%clk 00:03:05]} {[%emt 00:00:03]} 30. Qxe3 {[%clk 00:01:01]}
{[%emt 00:00:02]} Qf6 {[%clk 00:02:59]} {[%emt 00:00:09]} 31. Rb6 {[%clk
00:01:01]} {[%emt 00:00:04]} Rxc3 {[%clk 00:02:24]} {[%emt 00:00:38]} 32. Qxc3
{[%clk 00:00:57]} {[%emt 00:00:08]} Qxf2+ {[%clk 00:02:25]} {[%emt 00:00:02]}
33. Kh1 {[%clk 00:00:59]} {[%emt 00:00:01]} h6 {[%clk 00:01:46]} {[%emt
00:00:42]} 34. Rab1 {[%clk 00:01:00]} {[%emt 00:00:02]} Qa2 {[%clk 00:01:13]}
{[%emt 00:00:35]} 35. Rb8+ {[%clk 00:00:58]} {[%emt 00:00:05]} Kh7 {[%clk
00:01:05]} {[%emt 00:00:10]} 36. Qd3+ {[%clk 00:00:59]} {[%emt 00:00:02]} g6
{[%clk 00:01:01]} {[%emt 00:00:07]} 37. Rxa8 {[%clk 00:00:57]} {[%emt
00:00:05]} Qxa5 {[%clk 00:00:54]} {[%emt 00:00:09]} 38. Rab8 {[%clk 00:00:48]}
{[%emt 00:00:12]} Qc7 {[%clk 00:00:40]} {[%emt 00:00:17]} 39. R8b7 {[%clk
00:00:37]} {[%emt 00:00:14]} Qf4 {[%clk 00:00:30]} {[%emt 00:00:12]} 40. Rxf7+
{[%clk 00:00:38]} {[%emt 00:00:02]} Qxf7 {[%clk 00:00:31]} {[%emt 00:00:01]} 41.
Qb3 {[%clk 00:00:38]} {[%emt 00:00:04]} 1-0

[Event "Jeux du Barreau 2019"]
[Site "Paris, France"]
[Date "2019.07.10"]
[Round "1.3"]
[White "Constant, Arnaud"]
[Black "Aflalo, Sophie"]
[Result "0-1"]
[TimeControl "15+3"]
[WhiteElo "1399"]
[BlackElo "2094"]

1. e4 {[%clk 00:15:04]} {[%emt 00:00:01]} c5 {[%clk 00:15:04]} {[%emt
00:00:02]} 2. Nf3 {[%clk 00:15:05]} {[%emt 00:00:03]} Nc6 {[%clk 00:15:05]}
{[%emt 00:00:02]} 3. Nc3 {[%clk 00:15:05]} {[%emt 00:00:03]} Nf6 {[%clk
00:14:55]} {[%emt 00:00:12]} 4. Bb5 {[%clk 00:15:03]} {[%emt 00:00:05]} Nd4
{[%clk 00:14:39]} {[%emt 00:00:19]} 5. d3 {[%clk 00:14:47]} {[%emt 00:00:19]}
a6 {[%clk 00:14:22]} {[%emt 00:00:21]} 6. Ba4 {[%clk 00:14:29]} {[%emt
00:00:20]} Qc7 {[%clk 00:13:43]} {[%emt 00:00:42]} 7. h3 {[%clk 00:13:46]}
{[%emt 00:00:46]} e6 {[%clk 00:13:34]} {[%emt 00:00:13]} 8. Bg5 {[%clk
00:13:05]} {[%emt 00:00:43]} Be7 {[%clk 00:13:31]} {[%emt 00:00:06]} 9. e5
{[%clk 00:12:32]} {[%emt 00:00:37]} Nxf3+ {[%clk 00:13:29]} {[%emt 00:00:04]}
10. Qxf3 {[%clk 00:12:30]} {[%emt 00:00:06]} Qxe5+ {[%clk 00:13:29]} {[%emt
00:00:03]} 11. Qe3 {[%clk 00:12:18]} {[%emt 00:00:16]} Qxe3+ {[%clk 00:11:37]}
{[%emt 00:01:54]} 12. Bxe3 {[%clk 00:12:18]} {[%emt 00:00:03]} b5 {[%clk
00:11:38]} {[%emt 00:00:03]} 13. Bxb5 {[%clk 00:11:37]} {[%emt 00:00:45]} axb5
{[%clk 00:11:38]} {[%emt 00:00:02]} 14. Nxb5 {[%clk 00:11:38]} {[%emt
00:00:02]} O-O {[%clk 00:11:37]} {[%emt 00:00:04]} 15. O-O {[%clk 00:11:12]}
{[%emt 00:00:28]} d5 {[%clk 00:11:35]} {[%emt 00:00:05]} 16. d4 {[%clk
00:09:36]} {[%emt 00:01:34]} c4 {[%clk 00:11:16]} {[%emt 00:00:28]} 17. c3
{[%clk 00:09:37]} {[%emt 00:00:02]} Bd7 {[%clk 00:11:09]} {[%emt 00:00:10]} 18.
Na3 {[%clk 00:09:17]} {[%emt 00:00:23]} Bxa3 {[%clk 00:11:06]} {[%emt
00:00:05]} 19. bxa3 {[%clk 00:08:55]} {[%emt 00:00:25]} Rxa3 {[%clk 00:11:06]}
{[%emt 00:00:02]} 20. Bd2 {[%clk 00:08:42]} {[%emt 00:00:17]} Rfa8 {[%clk
00:11:03]} {[%emt 00:00:07]} 21. Bg5 {[%clk 00:08:00]} {[%emt 00:00:45]} Ne4
{[%clk 00:11:03]} {[%emt 00:00:02]} 0-1

[Event "Jeux du Barreau 2019"]
[Site "Paris, France"]
[Date "2019.07.10"]
[Round "1.5"]
[White "De Vareilles-Sommier, Ferdinand"]
[Black "Chanel, Virgile"]
[Result "0-1"]
[TimeControl "15+3"]
[WhiteElo "1399"]
[BlackElo "1991"]

1. e4 {[%clk 00:15:02]} {[%emt 00:00:03]} d6 {[%clk 00:15:05]} {[%emt
00:00:02]} 2. d4 {[%clk 00:14:58]} {[%emt 00:00:07]} Nf6 {[%clk 00:15:06]}
{[%emt 00:00:01]} 3. Nc3 {[%clk 00:14:59]} {[%emt 00:00:02]} Nbd7 {[%clk
00:15:08]} {[%emt 00:00:01]} 4. Nf3 {[%clk 00:14:55]} {[%emt 00:00:07]} e5
{[%clk 00:15:10]} {[%emt 00:00:01]} 5. dxe5 {[%clk 00:14:43]} {[%emt 00:00:15]}
dxe5 {[%clk 00:15:11]} 6. Bb5 {[%clk 00:14:40]} {[%emt 00:00:06]} c6 {[%clk
00:15:13]} {[%emt 00:00:02]} 7. Bc4 {[%clk 00:14:32]} {[%emt 00:00:11]} Be7
{[%clk 00:15:14]} {[%emt 00:00:02]} 8. Ng5 {[%clk 00:14:03]} {[%emt 00:00:32]}
O-O {[%clk 00:15:14]} {[%emt 00:00:02]} 9. O-O {[%clk 00:13:35]} {[%emt
00:00:31]} b5 {[%clk 00:15:16]} {[%emt 00:00:01]} 10. Bb3 {[%clk 00:13:30]}
{[%emt 00:00:09]} Qc7 {[%clk 00:15:17]} {[%emt 00:00:02]} 11. Re1 {[%clk
00:13:00]} {[%emt 00:00:32]} h6 {[%clk 00:15:12]} {[%emt 00:00:08]} 12. Nf3
{[%clk 00:12:03]} {[%emt 00:01:00]} Nc5 {[%clk 00:15:14]} {[%emt 00:00:02]} 13.
Be3 {[%clk 00:10:50]} {[%emt 00:01:15]} Ncxe4 {[%clk 00:14:30]} {[%emt
00:00:47]} 14. Nxe4 {[%clk 00:10:06]} {[%emt 00:00:47]} Nxe4 {[%clk 00:14:31]}
{[%emt 00:00:02]} 15. Bxh6 {[%clk 00:09:17]} {[%emt 00:00:51]} Nxf2 {[%clk
00:14:28]} {[%emt 00:00:07]} 16. Kxf2 {[%clk 00:09:14]} {[%emt 00:00:06]} gxh6
{[%clk 00:14:25]} {[%emt 00:00:07]} 17. Nxe5 {[%clk 00:08:37]} {[%emt
00:00:39]} Bc5+ {[%clk 00:14:10]} {[%emt 00:00:17]} 18. Kf1 {[%clk 00:08:28]}
{[%emt 00:00:13]} Be6 {[%clk 00:13:45]} {[%emt 00:00:27]} 19. Bxe6 {[%clk
00:08:09]} {[%emt 00:00:23]} fxe6+ {[%clk 00:13:47]} {[%emt 00:00:02]} 20. Nf3
{[%clk 00:07:48]} {[%emt 00:00:23]} Rxf3+ {[%clk 00:13:36]} {[%emt 00:00:15]}
21. Qxf3 {[%clk 00:07:38]} {[%emt 00:00:12]} Rf8 {[%clk 00:13:37]} {[%emt
00:00:03]} 22. Qxf8+ {[%clk 00:07:34]} {[%emt 00:00:06]} Kxf8 {[%clk 00:13:38]}
{[%emt 00:00:03]} 23. Rxe6 {[%clk 00:06:52]} {[%emt 00:00:43]} Qf7+ {[%clk
00:13:35]} {[%emt 00:00:07]} 24. Ke1 {[%clk 00:06:49]} {[%emt 00:00:06]} Qxe6+
{[%clk 00:13:36]} {[%emt 00:00:04]} 0-1

[Event "Jeux du Barreau 2019"]
[Site "Paris, France"]
[Date "2019.07.10"]
[Round "1.6"]
[White "Gautier, Joel"]
[Black "Delage, Pierre Luc"]
[Result "0-1"]
[TimeControl "15+3"]
[WhiteElo "1975"]
[BlackElo "1399"]

1. e4 {[%clk 00:14:45]} {[%emt 00:00:20]} e5 {[%clk 00:15:03]} {[%emt
00:00:02]} 2. Bc4 {[%clk 00:14:46]} {[%emt 00:00:03]} Nf6 {[%clk 00:14:52]}
{[%emt 00:00:15]} 3. d4 {[%clk 00:14:45]} {[%emt 00:00:04]} exd4 {[%clk
00:14:45]} {[%emt 00:00:10]} 4. Nf3 {[%clk 00:14:42]} {[%emt 00:00:07]} Bb4+
{[%clk 00:14:23]} {[%emt 00:00:24]} 5. c3 {[%clk 00:14:35]} {[%emt 00:00:10]}
dxc3 {[%clk 00:14:16]} {[%emt 00:00:08]} 6. bxc3 {[%clk 00:14:35]} {[%emt
00:00:04]} Bc5 {[%clk 00:13:51]} {[%emt 00:00:29]} 7. e5 {[%clk 00:14:13]}
{[%emt 00:00:26]} Ne4 {[%clk 00:13:12]} {[%emt 00:00:41]} 8. Qd5 {[%clk
00:11:40]} {[%emt 00:02:37]} Bxf2+ {[%clk 00:10:48]} {[%emt 00:02:26]} 9. Kf1
{[%clk 00:11:34]} {[%emt 00:00:09]} O-O {[%clk 00:10:01]} {[%emt 00:00:51]} 10.
Qxe4 {[%clk 00:11:34]} {[%emt 00:00:03]} Bb6 {[%clk 00:09:15]} {[%emt
00:00:48]} 11. Ng5 {[%clk 00:10:16]} {[%emt 00:01:21]} g6 {[%clk 00:08:41]}
{[%emt 00:00:37]} 12. h4 {[%emt 00:00:50]} d5 {[%clk 00:07:16]} {[%emt
00:01:08]} 13. Bxd5 {[%clk 00:09:25]} {[%emt 00:00:27]} Bf5 {[%clk 00:06:59]}
{[%emt 00:00:19]} 14. Qc4 {[%clk 00:08:02]} {[%emt 00:01:27]} Qe7 {[%clk
00:05:56]} {[%emt 00:01:06]} 15. h5 {[%clk 00:05:28]} {[%emt 00:02:37]} c6
{[%clk 00:05:15]} {[%emt 00:00:44]} 16. Bf3 {[%clk 00:01:43]} {[%emt 00:03:48]}
Qxe5 {[%clk 00:05:01]} {[%emt 00:00:17]} 17. hxg6 {[%clk 00:01:34]} {[%emt
00:00:12]} Bxg6 {[%clk 00:04:50]} {[%emt 00:00:14]} 18. Qh4 {[%clk 00:00:55]}
{[%emt 00:00:43]} Bd3+ {[%clk 00:04:00]} {[%emt 00:00:52]} 19. Be2 {[%clk
00:00:27]} {[%emt 00:00:32]} Qxe2# {[%clk 00:03:53]} {[%emt 00:00:09]} 0-1

[Event "Jeux du Barreau 2019"]
[Site "Paris, France"]
[Date "2019.07.10"]
[Round "1.7"]
[White "Abulius, Thomas"]
[Black "Spirta, Boris"]
[Result "0-1"]
[TimeControl "15+3"]
[WhiteElo "1390"]
[BlackElo "1811"]

1. d4 {[%clk 00:15:05]} {[%emt 00:27:22]} d6 {[%clk 00:15:00]} {[%emt
00:00:07]} 2. c4 {[%clk 00:14:53]} {[%emt 00:00:16]} Nf6 {[%clk 00:14:44]}
{[%emt 00:00:19]} 3. Nc3 {[%clk 00:14:46]} {[%emt 00:00:10]} g6 {[%clk
00:14:30]} {[%emt 00:00:17]} 4. e4 {[%clk 00:14:33]} {[%emt 00:00:15]} Bg7
{[%clk 00:14:15]} {[%emt 00:00:19]} 5. h3 {[%clk 00:14:26]} {[%emt 00:00:11]}
O-O {[%clk 00:13:48]} {[%emt 00:00:29]} 6. Nf3 {[%clk 00:14:19]} {[%emt
00:00:10]} e5 {[%clk 00:13:13]} {[%emt 00:00:38]} 7. dxe5 {[%clk 00:13:21]}
{[%emt 00:01:02]} dxe5 {[%clk 00:13:11]} {[%emt 00:00:05]} 8. Qxd8 {[%clk
00:13:13]} {[%emt 00:00:10]} Rxd8 {[%clk 00:13:12]} {[%emt 00:00:02]} 9. Bg5
{[%clk 00:12:37]} {[%emt 00:00:39]} Re8 {[%clk 00:06:56]} {[%emt 00:06:19]} 10.
O-O-O {[%clk 00:11:11]} {[%emt 00:01:30]} c6 {[%clk 00:05:11]} {[%emt
00:01:48]} 11. Be2 {[%clk 00:09:58]} {[%emt 00:01:16]} Nbd7 {[%clk 00:03:58]}
{[%emt 00:01:17]} 12. Rd6 {[%clk 00:08:59]} {[%emt 00:01:02]} h6 {[%clk
00:03:03]} {[%emt 00:00:57]} 13. Be3 {[%clk 00:07:47]} {[%emt 00:01:15]} Nb6
{[%clk 00:02:30]} {[%emt 00:00:36]} 14. c5 {[%clk 00:06:50]} {[%emt 00:00:59]}
Nbd7 {[%clk 00:02:32]} {[%emt 00:00:01]} 15. Rd3 {[%clk 00:05:46]} {[%emt
00:01:08]} Nf8 {[%clk 00:02:21]} {[%emt 00:00:14]} 16. Nd2 {[%clk 00:05:30]}
{[%emt 00:00:20]} Be6 {[%clk 00:02:17]} {[%emt 00:00:08]} 17. Nb3 {[%clk
00:04:30]} {[%emt 00:01:03]} Bc4 {[%clk 00:02:01]} {[%emt 00:00:15]} 18. Rd2
{[%clk 00:04:16]} {[%emt 00:00:20]} Bxe2 {[%clk 00:01:58]} {[%emt 00:00:06]} 19.
Rxe2 {[%clk 00:04:03]} {[%emt 00:00:16]} Ne6 {[%clk 00:01:57]} {[%emt
00:00:04]} 20. g3 {[%clk 00:03:40]} {[%emt 00:00:26]} a5 {[%clk 00:01:59]}
{[%emt 00:00:01]} 21. a4 {[%clk 00:02:42]} {[%emt 00:01:02]} Red8 {[%clk
00:01:42]} {[%emt 00:00:19]} 22. Rd1 {[%clk 00:02:33]} {[%emt 00:00:12]} Rxd1+
{[%clk 00:01:36]} {[%emt 00:00:09]} 23. Kxd1 {[%clk 00:02:31]} {[%emt
00:00:05]} Rd8+ {[%emt 00:00:19]} 24. Rd2 {[%emt 00:00:02]} Rxd2+ {[%clk
00:01:20]} {[%emt 00:00:02]} 25. Kxd2 {[%clk 00:02:36]} {[%emt 00:00:01]} Nd7
{[%clk 00:01:11]} {[%emt 00:00:11]} 26. Nxa5 {[%clk 00:01:27]} {[%emt
00:01:13]} Ndxc5 {[%clk 00:01:10]} {[%emt 00:00:04]} 27. b4 {[%clk 00:01:21]}
{[%emt 00:00:09]} Na6 {[%clk 00:00:57]} {[%emt 00:00:14]} 28. Nxb7 {[%clk
00:00:56]} {[%emt 00:00:30]} Nxb4 {[%clk 00:00:56]} {[%emt 00:00:03]} 29. Na5
{[%clk 00:00:57]} {[%emt 00:00:01]} Kh7 {[%clk 00:00:53]} {[%emt 00:00:07]} 30.
Bb6 {[%clk 00:00:38]} {[%emt 00:00:19]} Bf8 {[%clk 00:00:39]} {[%emt 00:00:20]}
31. Nc4 {[%clk 00:00:34]} {[%emt 00:00:06]} Bc5 {[%clk 00:00:37]} {[%emt
00:00:06]} 32. Bxc5 {[%clk 00:00:31]} {[%emt 00:00:07]} Nxc5 {[%clk 00:00:38]}
{[%emt 00:00:01]} 33. Nxe5 {[%clk 00:00:27]} {[%emt 00:00:06]} f6 {[%clk
00:00:39]} {[%emt 00:00:02]} 34. Nf7 {[%clk 00:00:23]} {[%emt 00:00:07]} Kg7
{[%clk 00:00:39]} {[%emt 00:00:03]} 35. Nd8 {[%clk 00:00:24]} {[%emt 00:00:02]}
Kf8 {[%clk 00:00:35]} {[%emt 00:00:06]} 36. a5 {[%clk 00:00:25]} {[%emt
00:00:03]} Ke7 {[%clk 00:00:35]} {[%emt 00:00:03]} 37. Nxc6+ {[%clk 00:00:06]}
{[%emt 00:00:22]} Nxc6 {[%clk 00:00:35]} {[%emt 00:00:03]} 38. Ke3 {[%clk
00:00:07]} {[%emt 00:00:01]} Nxa5 {[%emt 00:00:03]} 39. Nd5+ {[%emt 00:00:01]}
Ke6 {[%clk 00:00:30]} {[%emt 00:00:04]} 40. h4 {[%clk 00:00:09]} {[%emt
00:00:02]} Nab3 {[%clk 00:00:24]} {[%emt 00:00:08]} 41. f3 {[%clk 00:00:10]}
{[%emt 00:00:02]} Na5 {[%clk 00:00:21]} {[%emt 00:00:05]} 42. Nc7+ {[%clk
00:00:12]} {[%emt 00:00:01]} Kd6 {[%clk 00:00:22]} {[%emt 00:00:02]} 43. Ne8+
{[%clk 00:00:14]} {[%emt 00:00:02]} Ke7 {[%clk 00:00:24]} 44. Nc7 {[%clk
00:00:16]} {[%emt 00:00:02]} Nc6 {[%clk 00:00:23]} {[%emt 00:00:02]} 45. Nd5+
{[%clk 00:00:18]} {[%emt 00:00:03]} Ke6 {[%clk 00:00:25]} 46. Nf4+ {[%clk
00:00:19]} {[%emt 00:00:02]} Kf7 {[%clk 00:00:25]} {[%emt 00:00:02]} 47. Nd5
{[%clk 00:00:21]} {[%emt 00:00:01]} Ne5 {[%clk 00:00:25]} {[%emt 00:00:03]} 48.
f4 {[%clk 00:00:23]} {[%emt 00:00:01]} Ned7 {[%clk 00:00:25]} {[%emt 00:00:03]}
49. Kd4 {[%clk 00:00:19]} {[%emt 00:00:07]} Ne6+ {[%clk 00:00:22]} {[%emt
00:00:06]} 50. Ke3 {[%clk 00:00:21]} {[%emt 00:00:01]} g5 {[%clk 00:00:24]}
{[%emt 00:00:01]} 51. hxg5 {[%clk 00:00:22]} {[%emt 00:00:02]} fxg5 {[%clk
00:00:24]} {[%emt 00:00:02]} 52. fxg5 {[%clk 00:00:17]} {[%emt 00:00:09]} Nxg5
{[%clk 00:00:24]} {[%emt 00:00:04]} 53. Nf4 {[%clk 00:00:12]} {[%emt 00:00:04]}
Nf6 {[%clk 00:00:24]} {[%emt 00:00:03]} 54. e5 {[%clk 00:00:12]} {[%emt
00:00:07]} Nd7 {[%clk 00:00:19]} {[%emt 00:00:05]} 55. g4 {[%clk 00:00:08]}
{[%emt 00:00:09]} Nf8 {[%clk 00:00:21]} 56. Nh5 {[%clk 00:00:07]} {[%emt
00:00:05]} Nfe6 {[%clk 00:00:22]} 57. Ng3 {[%emt 00:00:09]} Kg6 58. Ne4 {[%emt
00:00:04]} Nc5 {[%emt 00:00:05]} 59. Nf6 0-1